fUST/lending_fUST_20240201
["ID","MTS","AMOUNT","RATE_DAILY","PERIOD"]
[313106611,1706753441008,-500.0,0.00022465,2]
[313106613,1706753441018,-151.0,0.00022482,2]
[313106615,1706753441031,-155.66234397,0.00022707,2]
[313106617,1706753441041,-1509.3,0.00022734,2]
[313106620,1706753441051,-1990.14,0.00022734,2]
[313106622,1706753441061,-500.0,0.00022738,2]
[313106624,1706753441073,-500.0,0.00022738,2]
[313106626,1706753441083,-500.0,0.00022738,2]
[313106628,1706753441093,-500.0,0.00022738,2]
[313106630,1706753441104,-500.0,0.00022739,2]
[313106633,1706753441113,-772.69,0.00022739,2]
[313106635,1706753441124,-2573.7,0.00022739,2]
[313106636,1706753441133,-500.0,0.00022739,2]
[313106639,1706753441144,-1103.98,0.00022739,2]
[313106641,1706753441153,-519.12,0.00022739,2]
[313106643,1706753441163,-500.0,0.00022739,2]
[313106645,1706753441173,-500.0,0.00022739,2]
[313106647,1706753441183,-1243.15127385,0.00022916,2]
[313106649,1706753441194,-166.666666,0.00022944,2]
[313106651,1706753441204,-9955.27197623,0.00023,2]
[313106653,1706753441214,-1500.0,0.00023,2]
[313106655,1706753441224,-1500.0,0.00023,2]
[313106658,1706753441235,-1500.0,0.00023,2]
[313106660,1706753441244,-1501.86,0.00023,2]
[313106662,1706753441254,-1500.0,0.00023,2]
[313106664,1706753441264,-1500.0,0.00023,2]
[313106666,1706753441274,-1500.0,0.00023,2]
[313106668,1706753441285,-1500.0,0.00023,2]
[313106670,1706753441295,-1500.0,0.00023,2]
[313106672,1706753441305,-1631.46,0.00023,2]
[313106674,1706753441316,-1000.0,0.00023,2]
[313106677,1706753441326,-1261.69149652,0.00023,2]
[313106679,1706753441336,-1509.3,0.00023008,2]
[313106681,1706753441346,-1990.14,0.00023008,2]
[313106683,1706753441356,-500.0,0.00023012,2]
[313106685,1706753441367,-500.0,0.00023012,2]
[313106687,1706753441377,-245.04226999,0.00023012,2]
[313106689,1706753441388,-500.0,0.00023012,2]
[313106691,1706753441398,-500.0,0.00023013,2]
[313106694,1706753441409,-772.69,0.00023013,2]
[313106696,1706753441422,-2573.7,0.00023013,2]
[313106698,1706753441433,-500.0,0.00023013,2]
[313106700,1706753441443,-1103.98,0.00023013,2]
[313106702,1706753441453,-519.12,0.00023013,2]
[313106704,1706753441465,-500.0,0.00023013,2]
[313106706,1706753441476,-500.0,0.00023013,2]
[313106709,1706753441486,-1509.3,0.00023282,2]
[313106711,1706753441498,-1990.14,0.00023282,2]
[313106713,1706753441508,-500.0,0.00023286,2]
[313106715,1706753441517,-500.0,0.00023286,2]
[313106728,1706753441630,-500.0,0.00023286,2]
[313106730,1706753441641,-500.0,0.00023287,2]
[313106732,1706753441650,-772.69,0.00023287,2]
[313106734,1706753441660,-2573.7,0.00023287,2]
[313106736,1706753441669,-500.0,0.00023287,2]
[313106738,1706753441678,-1103.98,0.00023287,2]
[313106740,1706753441687,-519.12,0.00023287,2]
[313106742,1706753441696,-500.0,0.00023287,2]
[313106744,1706753441705,-500.0,0.00023287,2]
[313106746,1706753441713,-151.0,0.00023304,2]
[313106748,1706753441723,-307.251151,0.00023425,2]
[313106750,1706753441732,-166.666666,0.00023456,2]
[313106752,1706753441742,-150.0,0.0002353,2]
[313106754,1706753441751,-1509.3,0.00023556,2]
[313106756,1706753441760,-1990.14,0.00023556,2]
[313106759,1706753441769,-500.0,0.0002356,2]
[313106761,1706753441779,-500.0,0.0002356,2]
[313106763,1706753441788,-500.0,0.0002356,2]
[313106765,1706753441797,-500.0,0.00023561,2]
[313106767,1706753441806,-772.69,0.00023561,2]
[313106769,1706753441815,-2573.7,0.00023561,2]
[313106771,1706753441824,-500.0,0.00023561,2]
[313106773,1706753441833,-1103.98,0.00023561,2]
[313106775,1706753441843,-519.12,0.00023561,2]
[313106776,1706753441852,-500.0,0.00023561,2]
[313106779,1706753441862,-498.52668785,0.00023561,2]
[313106781,1706753441871,-1509.3,0.0002383,2]
[313106783,1706753441881,-1990.14,0.0002383,2]
[313106785,1706753441890,-500.0,0.00023834,2]
[313106786,1706753441899,-500.0,0.00023834,2]
[313106788,1706753441909,-500.0,0.00023834,2]
[313106790,1706753441918,-500.0,0.00023835,2]
[313106792,1706753441928,-731.00380309,0.00023835,2]
[313106795,1706753441940,-41.68619691,0.00023835,2]
[313106797,1706753441949,-337.11147471,0.00023835,2]
[313107219,1706753446104,-420.469,0.00019,2]
[313108040,1706753500779,155.00310006,0.00021596,4]
[313108091,1706754233753,174.61785725,0.000222,4]
[313108123,1706754632192,-219.722467,0.00018487,2]
[313108125,1706754632202,-253.39715749,0.00018998,2]
[313108370,1706754638239,-10.15998029,0.00018998,2]
[313108372,1706754638249,-155.13668518,0.00018998,2]
[313108384,1706754638365,-1248.30683045,0.00018998,2]
[313108387,1706754638375,-471.98746665,0.00018998,2]
[313108389,1706754638384,-2042.45805917,0.00018999,2]
[313108390,1706754638394,-1169.17706832,0.00019,2]
[313108392,1706754638403,-500.0,0.00019178,2]
[313108394,1706754638412,-536.87163581,0.00019178,2]
[313108395,1706754638421,-169.965633,0.00019178,2]
[313108396,1706754638430,-500.0,0.00019452,2]
[313108397,1706754638440,-500.0,0.00019725,2]
[313108398,1706754638449,-505.2109281,0.00019725,2]
[313108399,1706754638458,-500.0,0.00019725,2]
[313108400,1706754638467,-500.0,0.00019725,2]
[313108401,1706754638477,-508.68146929,0.00019725,2]
[313108402,1706754638487,-512.55032361,0.00019725,2]
[313108403,1706754638496,-447.40634005,0.00019725,2]
[313108404,1706754638505,-500.0,0.00019725,2]
[313108405,1706754638514,-500.0,0.00019725,2]
[313108406,1706754638524,-509.03407911,0.00019725,2]
[313108407,1706754638533,-500.0,0.00019725,2]
[313108408,1706754638542,-500.0,0.00019725,2]
[313108409,1706754638551,-1587.83,0.00019725,2]
[313108410,1706754638560,-500.0,0.00019725,2]
[313108411,1706754638569,-500.0,0.00019725,2]
[313108412,1706754638578,-455.2446632,0.00019725,2]
[313108413,1706754638588,-500.0,0.00019725,2]
[313108414,1706754638597,-500.0,0.00019725,2]
[313108415,1706754638606,-500.0,0.00019725,2]
[313108416,1706754638615,-507.67886997,0.00019725,2]
[313108417,1706754638624,-500.0,0.00019725,2]
[313108418,1706754638633,-500.0,0.00019725,2]
[313108419,1706754638643,-500.0,0.00019725,2]
[313108420,1706754638652,-500.0,0.00019725,2]
[313108421,1706754638661,-504.68941615,0.00019725,2]
[313108422,1706754638670,-500.0,0.00019725,2]
[313108423,1706754638679,-500.0,0.00019725,2]
[313108424,1706754638688,-500.0,0.00019725,2]
[313108425,1706754638697,-505.54337339,0.00019725,2]
[313108426,1706754638706,-500.0,0.00019725,2]
[313108427,1706754638715,-500.0,0.00019725,2]
[313108428,1706754638725,-500.0,0.00019725,2]
[313108429,1706754638734,-1136.23,0.00019725,2]
[313108430,1706754638744,-500.0,0.00019725,2]
[313108431,1706754638753,-500.0,0.00019725,2]
[313108432,1706754638762,-1487.11,0.00019725,2]
[313108433,1706754638772,-500.0,0.00019726,2]
[313108434,1706754638783,-748.69,0.00019998,2]
[313108435,1706754638792,-566.9892121,0.00019998,2]
[313108436,1706754638801,-500.0,0.00019998,2]
[313108437,1706754638811,-500.0,0.00019999,2]
[313108438,1706754638819,-500.0,0.00019999,2]
[313108439,1706754638829,-500.0,0.00019999,2]
[313108440,1706754638838,-1587.83,0.00019999,2]
[313108441,1706754638847,-500.0,0.00019999,2]
[313108442,1706754638858,-500.0,0.00019999,2]
[313108443,1706754638868,-500.0,0.00019999,2]
[313108444,1706754638877,-500.0,0.00019999,2]
[313108445,1706754638886,-500.0,0.00019999,2]
[313108446,1706754638897,-500.0,0.00019999,2]
[313108447,1706754638906,-500.0,0.00019999,2]
[313108448,1706754638915,-500.0,0.00019999,2]
[313108449,1706754638924,-500.0,0.00019999,2]
[313108450,1706754638934,-500.0,0.00019999,2]
[313108451,1706754638944,-500.0,0.00019999,2]
[313108452,1706754638955,-1136.23,0.00019999,2]
[313108453,1706754638966,-500.0,0.00019999,2]
[313108454,1706754638975,-1487.11,0.00019999,2]
[313108455,1706754638984,-500.0,0.0002,2]
[313108456,1706754638993,-1200.31274669,0.00020271,2]
[313108457,1706754639003,-748.69,0.00020272,2]
[313108458,1706754639012,-500.0,0.00020272,2]
[313108459,1706754639021,-500.0,0.00020273,2]
[313108460,1706754639031,-500.0097031,0.00020273,2]
[313108461,1706754639040,-500.0,0.00020273,2]
[313108462,1706754639049,-500.0,0.00020273,2]
[313108463,1706754639058,-1587.83,0.00020273,2]
[313108464,1706754639068,-500.0,0.00020273,2]
[313108465,1706754639077,-500.0,0.00020273,2]
[313108466,1706754639086,-500.0,0.00020273,2]
[313108467,1706754639096,-500.0,0.00020273,2]
[313108468,1706754639105,-500.0,0.00020273,2]
[313108469,1706754639114,-500.0,0.00020273,2]
[313108470,1706754639123,-500.0,0.00020273,2]
[313108471,1706754639132,-500.0,0.00020273,2]
[313108472,1706754639141,-500.0,0.00020273,2]
[313108473,1706754639151,-500.0,0.00020273,2]
[313108474,1706754639160,-1136.23,0.00020273,2]
[313108475,1706754639210,-500.0,0.00020273,2]
[313108476,1706754639220,-1487.11,0.00020273,2]
[313108477,1706754639229,-2757.73750149,0.00020365,2]
[313108478,1706754639239,-5376.39,0.00020537,3]
[313108479,1706754639248,-748.69,0.00020546,2]
[313108480,1706754639257,-500.0,0.00020547,2]
[313108481,1706754639266,-500.0,0.00020547,2]
[313108482,1706754639275,-500.0,0.00020547,2]
[313108483,1706754639284,-1587.83,0.00020547,2]
[313108484,1706754639294,-500.0,0.00020547,2]
[313108485,1706754639303,-500.0,0.00020547,2]
[313108486,1706754639312,-500.0,0.00020547,2]
[313108487,1706754639321,-500.0,0.00020547,2]
[313108488,1706754639330,-500.0,0.00020547,2]
[313108489,1706754639338,-500.0,0.00020547,2]
[313108490,1706754639347,-500.0,0.00020547,2]
[313108491,1706754639356,-500.0,0.00020547,2]
[313108492,1706754639365,-500.0,0.00020547,2]
[313108493,1706754639374,-500.0,0.00020547,2]
[313108494,1706754639383,-1136.23,0.00020547,2]
[313108495,1706754639395,-500.0,0.00020547,2]
[313108496,1706754639404,-1487.11,0.00020547,2]
[313108497,1706754639413,-6451.67,0.00020706,3]
[313108498,1706754639422,-13261.95075509,0.00020716,2]
[313108499,1706754639431,-187.71315844,0.0002072,2]
[313108500,1706754639440,-563.94261902,0.0002082,2]
[313108501,1706754639449,-748.69,0.0002082,2]
[313108502,1706754639458,-500.0,0.00020821,2]
[313108503,1706754639467,-500.0,0.00020821,2]
[313108504,1706754639476,-500.0,0.00020821,2]
[313108505,1706754639485,-1587.83,0.00020821,2]
[313108506,1706754639494,-500.0,0.00020821,2]
[313108507,1706754639503,-500.0,0.00020821,2]
[313108508,1706754639512,-500.0,0.00020821,2]
[313108509,1706754639521,-500.0,0.00020821,2]
[313108510,1706754639530,-500.0,0.00020821,2]
[313108511,1706754639539,-500.0,0.00020821,2]
[313108512,1706754639550,-500.0,0.00020821,2]
[313108513,1706754639559,-500.0,0.00020821,2]
[313108514,1706754639568,-500.0,0.00020821,2]
[313108515,1706754639577,-500.0,0.00020821,2]
[313108516,1706754639587,-1136.23,0.00020821,2]
[313108517,1706754639596,-500.0,0.00020821,2]
[313108518,1706754639604,-1487.11,0.00020821,2]
[313108519,1706754639614,-200.0,0.00020898,2]
[313108520,1706754639622,-5000.0,0.00021052,2]
[313108521,1706754639631,-61434.21687661,0.00021052,2]
[313108522,1706754639640,-5000.0,0.00021052,2]
[313108523,1706754639649,-17027.90521217,0.00021052,2]
[313108524,1706754639658,-713.20394765,0.00021052,2]
[313108525,1706754639667,-1237.79352358,0.00021052,2]
[313108526,1706754639676,-748.69,0.00021094,2]
[313108527,1706754639685,-500.0,0.00021095,2]
[313108528,1706754639693,-515.88699958,0.00021095,2]
[313108529,1706754639703,-500.0,0.00021095,2]
[313108530,1706754639712,-1587.83,0.00021095,2]
[313108531,1706754639721,-500.0,0.00021095,2]
[313108532,1706754639730,-500.0,0.00021095,2]
[313108533,1706754639739,-500.0,0.00021095,2]
[313108534,1706754639747,-500.0,0.00021095,2]
[313108535,1706754639757,-500.0,0.00021095,2]
[313108536,1706754639766,-500.0,0.00021095,2]
[313108537,1706754639778,-500.0,0.00021095,2]
[313108538,1706754639787,-500.0,0.00021095,2]
[313108539,1706754639796,-500.0,0.00021095,2]
[313108540,1706754639805,-500.0,0.00021095,2]
[313108541,1706754639815,-1136.23,0.00021095,2]
[313108542,1706754639825,-500.0,0.00021095,2]
[313108543,1706754639833,-1487.11,0.00021095,2]
[313108544,1706754639843,-155.46826119,0.00021367,2]
[313108545,1706754639855,-748.69,0.00021368,2]
[313108546,1706754639864,-500.0,0.00021369,2]
[313108547,1706754639873,-500.0,0.00021369,2]
[313108548,1706754639882,-1587.83,0.00021369,2]
[313108549,1706754639892,-500.0,0.00021369,2]
[313108550,1706754639900,-500.0,0.00021369,2]
[313108551,1706754639910,-500.0,0.00021369,2]
[313108552,1706754639919,-500.0,0.00021369,2]
[313108553,1706754639928,-500.0,0.00021369,2]
[313108554,1706754639937,-500.0,0.00021369,2]
[313108555,1706754639947,-500.0,0.00021369,2]
[313108556,1706754639956,-500.0,0.00021369,2]
[313108557,1706754639966,-500.0,0.00021369,2]
[313108558,1706754639976,-500.0,0.00021369,2]
[313108559,1706754639985,-1136.23,0.00021369,2]
[313108560,1706754639994,-500.0,0.00021369,2]
[313108561,1706754640003,-1487.11,0.00021369,2]
[313108562,1706754640012,-681.46601652,0.00021593,2]
[313108563,1706754640021,-2724.21320407,0.00021594,2]
[313108564,1706754640031,-167.80837544,0.00021594,2]
[313108565,1706754640040,-367.26434854,0.00021594,2]
[313108566,1706754640049,-691.29323781,0.00021594,2]
[313108567,1706754640058,-155.35064667,0.00021594,2]
[313108568,1706754640068,-176.07121414,0.00021594,2]
[313108569,1706754640077,-350.60896108,0.00021594,2]
[313108570,1706754640086,-635.64207882,0.00021594,2]
[313108571,1706754640095,-155.40309156,0.00021594,2]
[313108572,1706754640104,-14963.74784658,0.00021595,2]
[313108573,1706754640113,-748.69,0.00021642,2]
[313108574,1706754640123,-500.0,0.00021643,2]
[313108575,1706754640132,-500.0,0.00021643,2]
[313108576,1706754640141,-1587.83,0.00021643,2]
[313108577,1706754640150,-500.0,0.00021643,2]
[313108578,1706754640160,-500.0,0.00021643,2]
[313108579,1706754640170,-500.0,0.00021643,2]
[313108580,1706754640179,-500.0,0.00021643,2]
[313108581,1706754640189,-500.0,0.00021643,2]
[313108582,1706754640198,-500.0,0.00021643,2]
[313108583,1706754640207,-500.0,0.00021643,2]
[313108584,1706754640216,-500.0,0.00021643,2]
[313108585,1706754640225,-500.0,0.00021643,2]
[313108586,1706754640234,-500.0,0.00021643,2]
[313108588,1706754640243,-1136.23,0.00021643,2]
[313108590,1706754640252,-500.0,0.00021643,2]
[313108592,1706754640261,-1487.11,0.00021643,2]
[313108593,1706754640270,-3000.0,0.000218,2]
[313108595,1706754640280,-748.69,0.00021916,2]
[313108597,1706754640289,-500.0,0.00021917,2]
[313108599,1706754640298,-1587.83,0.00021917,2]
[313108601,1706754640307,-500.0,0.00021917,2]
[313108602,1706754640316,-500.0,0.00021917,2]
[313108604,1706754640326,-500.0,0.00021917,2]
[313108606,1706754640334,-500.0,0.00021917,2]
[313108608,1706754640343,-500.0,0.00021917,2]
[313108610,1706754640353,-500.0,0.00021917,2]
[313108612,1706754640362,-492.52543003,0.00021917,2]
[313108614,1706754640371,-1136.23,0.00021917,2]
[313108616,1706754640380,-1487.11,0.00021917,2]
[313108618,1706754640390,-166.666666,0.00021918,2]
[313108620,1706754640399,-151.0,0.00021974,2]
[313108622,1706754640407,-2037.9288444,0.00022,2]
[313108624,1706754640416,-426.74292046,0.00022,2]
[313108626,1706754640426,-151.93956026,0.00022089,2]
[313108628,1706754640435,-187.71315844,0.000221,2]
[313108630,1706754640444,-748.69,0.0002219,2]
[313108631,1706754640453,-500.0,0.00022191,2]
[313108633,1706754640462,-1587.83,0.00022191,2]
[313108636,1706754640471,-500.0,0.00022191,2]
[313108638,1706754640480,-500.0,0.00022191,2]
[313108640,1706754640489,-500.0,0.00022191,2]
[313108642,1706754640498,-500.0,0.00022191,2]
[313108644,1706754640507,-500.0,0.00022191,2]
[313108646,1706754640516,-500.0,0.00022191,2]
[313108648,1706754640526,-1136.23,0.00022191,2]
[313108649,1706754640535,-337.79037108,0.00022199,2]
[313108650,1706754640544,-1829.31848174,0.000222,2]
[313108651,1706754640552,-284860.37823719,0.000222,2]
[313108653,1706754640562,-2088.24989888,0.000222,2]
[313108655,1706754640571,-300.0,0.000222,2]
[313108657,1706754640579,-685.29221933,0.000222,2]
[313108659,1706754640589,-6138.13119635,0.000222,2]
[313108661,1706754640598,-166.666666,0.00022431,2]
[313108662,1706754640607,-748.69,0.00022464,2]
[313108664,1706754640616,-500.0,0.00022465,2]
[313108666,1706754640625,-500.0,0.00022465,2]
[313108668,1706754640634,-1587.83,0.00022465,2]
[313108670,1706754640643,-500.0,0.00022465,2]
[313108672,1706754640652,-500.0,0.00022465,2]
[313108674,1706754640661,-500.0,0.00022465,2]
[313108676,1706754640670,-500.0,0.00022465,2]
[313108677,1706754640679,-382.17927722,0.00022465,2]
[313108679,1706754640688,-1136.23,0.00022465,2]
[313108680,1706754640697,-748.69,0.00022738,2]
[313108681,1706754640706,-500.0,0.00022739,2]
[313108682,1706754640715,-500.0,0.00022739,2]
[313108683,1706754640724,-1587.83,0.00022739,2]
[313108684,1706754640734,-500.0,0.00022739,2]
[313108685,1706754640743,-500.0,0.00022739,2]
[313108686,1706754640752,-500.0,0.00022739,2]
[313108687,1706754640839,-500.0,0.00022739,2]
[313108688,1706754640850,-1136.23,0.00022739,2]
[313108689,1706754640859,-151.0,0.00022854,2]
[313108690,1706754640868,-224.192,0.00022882,2]
[313108691,1706754640877,-224.192,0.00022882,2]
[313108692,1706754640886,-224.192,0.00022882,2]
[313108693,1706754640896,-224.192,0.00022882,2]
[313108694,1706754640905,-224.192,0.00022882,2]
[313108695,1706754640914,-166.666666,0.00022944,2]
[313108696,1706754640923,-9956.8960438,0.00023,2]
[313108697,1706754640932,-1261.69149652,0.00023,2]
[313108698,1706754640943,-748.69,0.00023012,2]
[313108699,1706754640951,-173.35510336,0.00023013,2]
[313108700,1706754640962,-151.0,0.00023013,2]
[313108701,1706754640971,-151.0,0.00023013,2]
[313108702,1706754640981,-1587.83,0.00023013,2]
[313108703,1706754640992,-500.0,0.00023013,2]
[313108704,1706754641002,-500.0,0.00023013,2]
[313108705,1706754641011,-518.09197786,0.00023013,2]
[313108706,1706754641021,-500.0,0.00023013,2]
[313108707,1706754641031,-500.0,0.00023013,2]
[313108708,1706754641040,-1136.23,0.00023013,2]
[313108709,1706754641049,-748.69,0.00023286,2]
[313108710,1706754641058,-152.659174,0.00023287,2]
[313108711,1706754641068,-155.528036,0.00023287,2]
[313108712,1706754641078,-500.0,0.00023287,2]
[313108713,1706754641087,-1587.83,0.00023287,2]
[313108714,1706754641096,-500.0,0.00023287,2]
[313108715,1706754641105,-500.0,0.00023287,2]
[313108716,1706754641114,-500.0,0.00023287,2]
[313108717,1706754641122,-1136.23,0.00023287,2]
[313108718,1706754641132,-818.38,0.00023358,4]
[313108719,1706754641141,-818.38,0.00023358,4]
[313108720,1706754641150,-694.87497685,0.00023358,4]
[313108721,1706754641165,-123.50502315,0.00023358,4]
[313108722,1706754641174,-818.38,0.00023358,4]
[313108723,1706754641183,-818.38,0.00023358,4]
[313108724,1706754641192,-166.666666,0.00023456,2]
[313108725,1706754641201,-1410.00239002,0.00023518,2]
[313108753,1706754643391,-542.56072663,0.00022191,2]
[313108760,1706754643446,-828.40967814,0.00022191,2]
[313108835,1706755838466,-155.01240099,0.00019177,2]
[313108837,1706755838475,-168.3385371,0.00019178,2]
[313108839,1706755838484,-28.38957449,0.00019376,2]
[313108845,1706755838520,-147.17007741,0.00019376,2]
[313108847,1706755838529,-5294.26827455,0.00019724,2]
[313108849,1706755838539,-500.0,0.00019725,2]
[313108851,1706755838548,-155.01085076,0.00019978,3]
[313108853,1706755838557,-498.96253921,0.00019998,2]
[313108855,1706755838566,-500.0,0.00019998,2]
[313108857,1706755838575,-500.0,0.00019998,2]
[313108859,1706755838584,-500.0,0.00019998,2]
[313108861,1706755838592,-500.0,0.00019998,2]
[313108863,1706755838601,-500.0,0.00019998,2]
[313108865,1706755838610,-500.0,0.00019998,2]
[313108867,1706755838619,-500.0,0.00019998,2]
[313108869,1706755838628,-500.0,0.00019998,2]
[313108871,1706755838637,-1200.31274669,0.0002,2]
[313108873,1706755838646,-155.01395126,0.00020098,2]
[313108875,1706755838655,-2742.37964965,0.000201,2]
[313108877,1706755838664,-500.0,0.00020272,2]
[313108879,1706755838673,-500.0,0.00020272,2]
[313108881,1706755838683,-500.0,0.00020272,2]
[313108883,1706755838691,-500.0,0.00020546,2]
[313108885,1706755838701,-500.0,0.00020546,2]
[313108887,1706755838710,-500.0,0.0002082,2]
[313108889,1706755838718,-500.0,0.0002082,2]
[313108891,1706755838727,-165.55540842,0.00020951,2]
[313108893,1706755838736,-489.92584283,0.00020952,2]
[313108895,1706755838745,-650.75678587,0.0002105,2]
[313108897,1706755838754,-303.4950522,0.00021051,2]
[313108899,1706755838764,-500.0,0.00021051,2]
[313108901,1706755838773,-1257.03,0.00021051,2]
[313108903,1706755838782,-500.0,0.00021051,2]
[313108905,1706755838790,-623.91,0.00021051,2]
[313108907,1706755838799,-500.0,0.00021051,2]
[313108909,1706755838808,-500.0,0.00021051,2]
[313108911,1706755838817,-500.0,0.00021051,2]
[313108913,1706755838826,-500.0,0.00021051,2]
[313108915,1706755838835,-17270.4472574,0.00021052,2]
[313108916,1706755838844,-2809.91970459,0.00021052,2]
[313108918,1706755838854,-515.88699958,0.00021093,2]
[313108921,1706755838863,-500.0,0.00021093,2]
[313108923,1706755838872,-500.0,0.00021093,2]
[313108925,1706755838880,-500.0,0.00021093,2]
[313108927,1706755838889,-500.0,0.00021093,2]
[313108929,1706755838898,-500.0,0.00021093,2]
[313108930,1706755838908,-500.0,0.00021093,2]
[313108932,1706755838917,-899.51,0.00021093,2]
[313108934,1706755838926,-1120.18,0.00021093,2]
[313108936,1706755838935,-500.0,0.00021094,2]
[313108937,1706755838945,-500.0,0.00021325,2]
[313108939,1706755838954,-1257.03,0.00021325,2]
[313108941,1706755838963,-500.0,0.00021325,2]
[313108943,1706755838972,-623.91,0.00021325,2]
[313108945,1706755838983,-500.0,0.00021325,2]
[313108947,1706755838991,-500.0,0.00021325,2]
[313108948,1706755839000,-500.0,0.00021325,2]
[313108951,1706755839011,-500.0,0.00021367,2]
[313108952,1706755839020,-500.0,0.00021367,2]
[313108954,1706755839029,-500.0,0.00021367,2]
[313108956,1706755839038,-500.0,0.00021367,2]
[313108958,1706755839047,-500.0,0.00021367,2]
[313108960,1706755839056,-500.0,0.00021367,2]
[313108962,1706755839065,-899.51,0.00021367,2]
[313108964,1706755839074,-1120.18,0.00021367,2]
[313108965,1706755839083,-500.0,0.00021368,2]
[313108967,1706755839092,-500.0,0.00021599,2]
[313108969,1706755839101,-1257.03,0.00021599,2]
[313108971,1706755839111,-500.0,0.00021599,2]
[313108972,1706755839120,-623.91,0.00021599,2]
[313108974,1706755839133,-500.0,0.00021599,2]
[313108976,1706755839143,-500.0,0.00021599,2]
[313108978,1706755839152,-500.0,0.00021599,2]
[313108979,1706755839161,-500.0,0.00021641,2]
[313108981,1706755839172,-500.0,0.00021641,2]
[313108982,1706755839182,-500.0,0.00021641,2]
[313108983,1706755839191,-500.0,0.00021641,2]
[313108984,1706755839201,-500.0,0.00021641,2]
[313108985,1706755839211,-500.0,0.00021641,2]
[313108986,1706755839220,-899.51,0.00021641,2]
[313108987,1706755839229,-1120.18,0.00021641,2]
[313108988,1706755839239,-500.0,0.00021642,2]
[313108989,1706755839248,-4666.46,0.0002179,3]
[313108990,1706755839258,-3000.0,0.000218,2]
[313108991,1706755839267,-500.0,0.00021873,2]
[313108992,1706755839277,-1257.03,0.00021873,2]
[313108993,1706755839286,-500.0,0.00021873,2]
[313108994,1706755839295,-623.91,0.00021873,2]
[313108995,1706755839305,-500.0,0.00021873,2]
[313108996,1706755839314,-187.71315844,0.000219,2]
[313108997,1706755839324,-500.0,0.00021915,2]
[313108998,1706755839333,-500.0,0.00021915,2]
[313108999,1706755839342,-500.0,0.00021915,2]
[313109000,1706755839352,-492.52543003,0.00021915,2]
[313109001,1706755839361,-899.51,0.00021915,2]
[313109002,1706755839463,-1120.18,0.00021915,2]
[313109003,1706755839477,-500.0,0.00021916,2]
[313109004,1706755839486,-166.666666,0.00021918,2]
[313109005,1706755839496,-691.29323781,0.00021965,2]
[313109006,1706755839505,-367.26434854,0.00021965,2]
[313109007,1706755839514,-681.46601652,0.00021965,2]
[313109008,1706755839523,-167.80837544,0.00021966,2]
[313109009,1706755839532,-2724.21320407,0.00021966,2]
[313109010,1706755839542,-14963.74784658,0.00021967,2]
[313109011,1706755839551,-2037.9288444,0.00022,2]
[313109012,1706755839561,-426.74292046,0.00022,2]
[313109013,1706755839570,-500.0,0.00022147,2]
[313109014,1706755839579,-1257.03,0.00022147,2]
[313109015,1706755839588,-500.0,0.00022147,2]
[313109016,1706755839597,-623.91,0.00022147,2]
[313109017,1706755839606,-500.0,0.00022147,2]
[313109018,1706755839615,-350.60896108,0.00022189,2]